bitfinex-derivatives/quotes_BTCF0:USTF0_20240925
["timestamp","ask_amount","ask_price","bid_price","bid_amount"]
[1727251694930,0.02637852,63875.0,63874.0,0.44013663]
[1727251695522,0.02637852,63875.0,63874.0,0.07933663]
[1727251695721,0.02637852,63875.0,63874.0,0.44013663]
[1727251696822,0.02637842,63875.0,63874.0,0.44013663]
[1727251699033,0.11637842,63875.0,63874.0,0.44013663]
[1727251699235,0.19465142,63875.0,63874.0,0.44013663]
[1727251699822,0.19465142,63875.0,63874.0,0.36186163]
[1727251701128,0.19705142,63875.0,63874.0,0.36186163]
[1727251702032,0.19705142,63875.0,63874.0,0.04798638]
[1727251702232,0.19705142,63875.0,63874.0,0.00106163]
[1727251703738,0.19705142,63875.0,63874.0,0.04799004]
[1727251704036,0.19705142,63875.0,63874.0,0.00106163]
[1727251706337,0.19705177,63875.0,63874.0,0.00106163]
[1727251709833,0.19705288,63875.0,63874.0,0.04800666]
[1727251710035,0.19705288,63875.0,63874.0,0.00106163]
[1727251710832,0.19705288,63875.0,63874.0,0.04800666]
[1727251711033,0.19705312,63875.0,63874.0,0.04800666]
[1727251713240,0.19705312,63875.0,63874.0,0.00106163]
[1727251718038,0.19465312,63875.0,63874.0,0.00106163]
[1727251720537,0.169273,63875.0,63874.0,0.00106163]
[1727251720737,0.19465332,63875.0,63874.0,0.00106163]
[1727251722640,0.10465332,63875.0,63874.0,0.04800666]
[1727251722955,0.19465332,63875.0,63874.0,0.04797826]
[1727251723339,0.19465332,63875.0,63874.0,0.00106163]
[1727251724237,0.19465165,63875.0,63874.0,0.00106163]
[1727251725945,0.19465165,63875.0,63874.0,0.047982]
[1727251730451,0.19465296,63875.0,63874.0,0.047982]
[1727251732344,0.19705296,63875.0,63874.0,0.047982]
[1727251735049,0.171673,63875.0,63874.0,0.047982]
[1727251735251,0.19705297,63875.0,63874.0,0.047982]
[1727251736644,0.2908155,63875.0,63874.0,0.00106163]
[1727251737050,0.19705297,63875.0,63874.0,0.00106163]
[1727251743160,0.19705296,63875.0,63874.0,0.00106163]
[1727251746065,0.19705296,63875.0,63874.0,0.047982]
[1727251747063,0.19705296,63875.0,63874.0,0.00106163]
[1727251749363,0.19465296,63875.0,63874.0,0.00106163]
[1727251749574,0.28841549,63875.0,63874.0,0.00106163]
[1727251749755,0.33860538,63875.0,63874.0,0.00106163]
[1727251749963,1.25173938,63875.0,63868.0,0.04692037]
[1727251750263,0.18396957,63869.0,63866.0,0.05052037]
[1727251750472,0.078284,63866.0,63865.0,0.04692037]
[1727251750669,0.078288,63863.0,63862.0,0.3608]
[1727251750862,0.19367196,63863.0,63862.0,0.40774254]
[1727251751164,0.19367196,63863.0,63862.0,0.3608]
[1727251752368,0.24650429,63863.0,63862.0,0.3608]
[1727251752772,0.24750429,63863.0,63862.0,0.3658]
[1727251753267,0.24750429,63863.0,63862.0,0.01]
[1727251753268,0.24850429,63863.0,63862.0,0.01]
[1727251754470,0.170288,63863.0,63862.0,0.01]
[1727251755562,0.1956737,63863.0,63862.0,0.01]
[1727251756068,0.2739617,63863.0,63862.0,0.01]
[1727251756465,0.248576,63863.0,63862.0,0.01]
[1727251757370,0.156586,63859.0,63858.0,0.3644]
[1727251757567,0.078304,63850.0,63849.0,0.0036]
[1727251757774,0.15251048,63850.0,63844.0,0.05054254]
[1727251757963,0.13688275,63845.0,63843.0,0.3608]
[1727251758164,0.16831,63845.0,63843.0,0.3608]
[1727251758571,0.13688275,63845.0,63842.0,0.031]
[1727251758761,0.04688275,63844.0,63842.0,0.031]
[1727251758965,0.04688275,63843.0,63842.0,0.031]
[1727251759166,0.15251034,63845.0,63842.0,0.031]
[1727251759366,0.04682263,63844.0,63842.0,0.031]
[1727251759972,0.04682263,63843.0,63842.0,0.031]
[1727251760158,0.079313,63843.0,63842.0,0.031]
[1727251760781,0.001,63843.0,63838.0,0.0327]
[1727251761017,0.09,63839.0,63838.0,0.0327]
[1727251762064,0.168316,63841.0,63838.0,0.0327]
[1727251762269,0.001,63839.0,63838.0,0.0327]
[1727251764380,0.001,63839.0,63838.0,0.36614744]
[1727251764566,0.002,63839.0,63838.0,0.36614744]
[1727251764873,0.002,63839.0,63838.0,1.43606744]
[1727251765271,0.0036,63848.0,63838.0,1.35774844]
[1727251765472,0.0036,63848.0,63847.0,0.3608]
[1727251765773,0.078307,63848.0,63847.0,0.531855]
[1727251766373,0.079307,63848.0,63847.0,0.531855]
[1727251766674,0.080307,63848.0,63847.0,0.531855]
[1727251767183,0.079307,63848.0,63847.0,0.531855]
[1727251767384,0.080307,63848.0,63847.0,0.531855]
[1727251768185,0.079307,63848.0,63847.0,0.531855]
[1727251768573,0.079307,63848.0,63847.0,0.610163]
[1727251772487,0.079307,63848.0,63847.0,0.3608]
[1727251774878,0.12612963,63848.0,63845.0,0.11011]
[1727251775081,0.09,63846.0,63845.0,0.11011]
[1727251776086,0.09,63846.0,63845.0,0.11111]
[1727251776292,0.091,63846.0,63845.0,0.11111]
[1727251776882,0.092,63846.0,63845.0,0.11111]
[1727251779689,0.170309,63846.0,63845.0,0.11111]
[1727251780493,0.21713163,63846.0,63845.0,0.11111]
[1727251781791,0.170309,63846.0,63845.0,0.11111]
[1727251784422,0.23281934,63846.0,63845.0,0.11111]
[1727251785604,0.170309,63846.0,63845.0,0.11111]
[1727251785794,0.170309,63846.0,63845.0,0.07931]
[1727251786795,0.170309,63846.0,63845.0,0.001]
[1727251787601,0.2484471,63846.0,63845.0,0.001]
[1727251788502,0.24858653,63846.0,63845.0,0.001]
[1727251788903,0.170309,63846.0,63845.0,0.001]
[1727251789099,0.170309,63846.0,63845.0,0.04794254]
[1727251790100,0.170309,63846.0,63845.0,0.07931]
[1727251792521,0.170309,63846.0,63845.0,0.44011]
[1727251793322,0.002,63846.0,63845.0,0.53011]
[1727251793725,0.002,63846.0,63845.0,0.59247413]
[1727251794119,0.002,63846.0,63845.0,0.50247413]
[1727251795326,0.0044,63846.0,63845.0,0.50247413]
[1727251800816,0.0044,63846.0,63845.0,0.68463835]
[1727251801021,0.0044,63846.0,63845.0,1.8348539]
[1727251801217,0.0044,63846.0,63845.0,1.2348539]
[1727251801524,0.0044,63846.0,63845.0,1.1565439]
[1727251801821,0.14138584,63846.0,63845.0,0.60632835]
[1727251802021,0.0944,63846.0,63845.0,0.60632835]
[1727251802430,0.15704955,63846.0,63845.0,0.66891573]
[1727251802823,0.23535855,63846.0,63845.0,0.66891573]
[1727251803531,0.172709,63846.0,63845.0,0.60632835]
[1727251803829,0.172709,63846.0,63845.0,0.52801835]
[1727251804030,0.172709,63846.0,63845.0,0.3618]
[1727251804933,0.172709,63846.0,63845.0,0.40874685]
[1727251805139,0.25098653,63846.0,63845.0,0.3618]
[1727251805737,0.172709,63846.0,63845.0,0.3618]
[1727251806727,0.24998653,63846.0,63845.0,0.3618]
[1727251807132,0.171709,63846.0,63845.0,0.001]
[1727251807432,0.24998653,63846.0,63845.0,0.3618]
[1727251807630,0.24898653,63846.0,63845.0,0.3618]
[1727251808031,0.080709,63846.0,63845.0,0.66608951]
[1727251808225,0.080709,63846.0,63845.0,0.69745266]
[1727251808627,0.080709,63846.0,63845.0,0.76004004]
[1727251808833,0.14332642,63846.0,63845.0,0.76004004]
[1727251809337,0.080709,63846.0,63845.0,0.76004004]
[1727251809532,0.080709,63846.0,63845.0,0.60745266]
[1727251812328,0.078309,63846.0,63845.0,0.52914266]
[1727251815347,0.078309,63846.0,63845.0,0.16834266]
[1727251815539,0.078309,63846.0,63845.0,0.52914266]
[1727251816342,0.078309,63846.0,63845.0,0.57609862]
[1727251816742,0.078309,63846.0,63845.0,0.52914266]
[1727251817337,0.078309,63846.0,63845.0,0.57609882]
[1727251817642,0.078309,63846.0,63845.0,0.52914266]
[1727251820434,0.078309,63846.0,63845.0,0.16834266]
[1727251820633,0.078309,63846.0,63845.0,0.52914266]
[1727251826634,0.080709,63846.0,63845.0,0.16834266]
[1727251827147,0.080709,63846.0,63845.0,0.52914266]
[1727251829744,0.080709,63846.0,63845.0,0.16834266]
[1727251830046,0.080709,63846.0,63845.0,0.52914266]
[1727251830548,0.080709,63846.0,63845.0,0.57610681]
[1727251831549,0.24898653,63846.0,63845.0,0.52914266]
[1727251832656,0.170709,63846.0,63845.0,0.52914266]
[1727251833550,0.27440788,63846.0,63845.0,0.16834266]
[1727251833750,0.27440788,63846.0,63845.0,0.001]
[1727251833947,0.36817361,63846.0,63845.0,0.001]
[1727251835442,0.27440788,63846.0,63845.0,0.001]
[1727251837055,0.18440788,63846.0,63845.0,0.3618]
[1727251837253,0.27440788,63846.0,63845.0,0.3618]
[1727251837458,0.2744087,63846.0,63845.0,0.3618]
[1727251838858,0.1960997,63846.0,63845.0,0.3618]
[1727251839745,0.1960997,63846.0,63845.0,0.40879176]
[1727251840550,0.19609862,63846.0,63845.0,0.40878595]
[1727251841362,0.19609862,63846.0,63845.0,0.3618]
[1727251841961,0.08071764,63846.0,63845.0,0.44011]
[1727251842166,0.08071764,63846.0,63845.0,0.61210764]
[1727251842760,0.15902664,63846.0,63845.0,0.61210764]
[1727251843565,0.24662664,63846.0,63845.0,0.61210764]
[1727251847565,0.168309,63846.0,63845.0,0.61210764]
[1727251852869,0.168309,63846.0,63845.0,0.53379764]
[1727251857974,0.170709,63846.0,63845.0,0.53379764]
[1727251858762,0.24902664,63846.0,63845.0,0.21997701]
[1727251858970,0.170709,63846.0,63845.0,0.21997701]
[1727251859167,0.170709,63846.0,63845.0,0.21997781]
[1727251859366,0.24901734,63846.0,63845.0,0.21997781]
[1727251859672,0.24901734,63846.0,63845.0,0.17299764]
[1727251859673,0.19609877,63846.0,63845.0,0.17299764]
[1727251859879,0.170709,63846.0,63845.0,0.21997781]
[1727251860178,0.170709,63846.0,63845.0,0.17299764]
[1727251860380,0.080709,63846.0,63845.0,0.17299764]
[1727251860677,0.0024,63846.0,63845.0,0.25130764]
[1727251860868,0.04697799,63848.0,63846.0,0.46988]
[1727251861174,0.0078,63860.0,63854.0,0.078299]
[1727251861175,0.16440122,63860.0,63854.0,0.078299]
[1727251861475,0.078293,63859.0,63856.0,0.078296]
[1727251861694,0.078293,63859.0,63857.0,0.04690755]
[1727251862000,0.078293,63859.0,63858.0,0.04690755]
[1727251862403,0.078293,63859.0,63858.0,0.18149168]
[1727251863480,0.088293,63859.0,63858.0,0.18149168]
[1727251863979,0.178293,63859.0,63858.0,0.18149168]
[1727251864165,0.078294,63858.0,63857.0,0.16942249]
[1727251864372,0.078296,63857.0,63854.0,0.3608]
[1727251864769,0.078296,63857.0,63856.0,0.16942249]
[1727251864968,0.022,63859.0,63856.0,0.09]
[1727251865171,0.022,63859.0,63856.0,0.168297]
[1727251865374,0.022,63859.0,63857.0,0.17803835]
[1727251865780,0.011,63858.0,63857.0,0.17803835]
[1727251866080,0.02,63858.0,63857.0,0.17803835]
[1727251866674,0.011,63858.0,63857.0,0.17803835]
[1727251867382,0.019,63859.0,63857.0,0.17803835]
[1727251867973,0.019,63859.0,63857.0,0.25633335]
[1727251868167,0.011,63858.0,63857.0,0.25633335]
[1727251868585,0.02,63858.0,63857.0,0.25633335]
[1727251868782,0.009,63858.0,63857.0,0.25633335]
[1727251869193,0.087294,63858.0,63857.0,0.17803835]
[1727251869387,0.177294,63858.0,63857.0,0.17803835]
[1727251869685,0.177294,63858.0,63854.0,0.3608]
[1727251869686,0.078298,63855.0,63854.0,0.3608]
[1727251869877,0.078303,63851.0,63850.0,0.04690755]
[1727251870078,0.078303,63851.0,63848.0,0.078306]
[1727251870079,0.168303,63851.0,63849.0,0.3608]
[1727251870277,0.168303,63851.0,63850.0,0.16561511]
[1727251870591,0.168303,63851.0,63849.0,0.52641511]
[1727251870777,0.168303,63851.0,63849.0,0.3608]
[1727251871087,0.172303,63851.0,63850.0,0.17172537]
[1727251871688,0.174303,63851.0,63850.0,0.17172537]
[1727251872072,0.173303,63851.0,63850.0,0.17172537]
[1727251872303,0.173303,63851.0,63850.0,0.25002937]
[1727251872484,0.083303,63851.0,63850.0,0.25002937]
[1727251873478,0.005,63851.0,63850.0,0.25002937]
[1727251873780,0.005,63851.0,63850.0,0.29693692]
[1727251873781,0.006,63851.0,63850.0,0.29693692]
[1727251873986,0.006,63851.0,63850.0,0.25002937]
[1727251875286,0.078301,63853.0,63850.0,0.17272537]
[1727251875491,0.078302,63852.0,63851.0,0.21516521]
[1727251875891,0.078302,63852.0,63851.0,0.38969332]
[1727251876192,0.078302,63852.0,63851.0,0.38969301]
[1727251876886,0.078302,63852.0,63851.0,0.25283111]
[1727251877191,0.079302,63852.0,63851.0,0.25283111]
[1727251877781,0.079302,63852.0,63851.0,0.61363111]
[1727251878382,0.079302,63852.0,63851.0,0.66049301]
[1727251879491,0.079302,63852.0,63851.0,0.61363111]
[1727251880586,0.079302,63852.0,63851.0,0.75049301]
[1727251881287,0.079302,63852.0,63851.0,0.66049301]
[1727251882495,0.079302,63852.0,63851.0,0.61363111]
[1727251886297,0.079302,63852.0,63851.0,0.25283111]
[1727251886598,0.079302,63852.0,63851.0,0.61363111]
[1727251886993,0.079302,63852.0,63851.0,0.58224024]
[1727251887294,0.079302,63852.0,63851.0,0.53532811]
[1727251887593,0.157604,63852.0,63851.0,0.53532811]
[1727251888904,0.078307,63848.0,63847.0,0.0036]
[1727251889089,0.078307,63848.0,63845.0,0.40771213]
[1727251889090,0.078309,63846.0,63845.0,0.3608]
[1727251889289,0.168309,63846.0,63845.0,0.3608]
[1727251889490,0.168309,63846.0,63845.0,0.54133917]
[1727251890393,0.168309,63846.0,63845.0,0.54233917]
[1727251892705,0.168309,63846.0,63845.0,0.3618]
[1727251899896,0.168309,63846.0,63845.0,0.44011]
[1727251900806,0.078309,63846.0,63845.0,0.44011]
[1727251903602,0.078309,63846.0,63845.0,0.07931]
[1727251903813,0.078309,63846.0,63845.0,0.44011]
[1727251908611,0.078309,63846.0,63845.0,0.62105065]
[1727251909217,0.168302,63852.0,63851.0,0.078303]
[1727251909412,0.0301,63856.0,63851.0,0.3608]
[1727251909413,0.07823677,63856.0,63851.0,0.3608]
[1727251909614,0.15659,63858.0,63857.0,0.078296]
[1727251909819,0.078294,63858.0,63857.0,0.439096]
[1727251911220,0.087294,63858.0,63857.0,0.439096]
[1727251911822,0.098294,63858.0,63857.0,0.439096]
[1727251914612,0.02,63858.0,63857.0,0.439096]
[1727251915413,0.02,63858.0,63857.0,0.6108399]
[1727251918923,0.188294,63858.0,63857.0,0.439096]
[1727251929041,0.266588,63858.0,63857.0,0.3608]
[1727251929328,0.078302,63852.0,63851.0,0.442703]
[1727251929515,0.078302,63852.0,63851.0,0.439103]
[1727251929927,0.078302,63852.0,63851.0,0.61088579]
[1727251930329,0.078302,63852.0,63851.0,0.65779792]
[1727251930930,0.083302,63852.0,63851.0,0.70088579]
[1727251931628,0.005,63852.0,63851.0,0.70088579]
[1727251932235,0.0072,63859.0,63858.0,0.078294]
[1727251932427,0.14081156,63861.0,63860.0,0.078292]
[1727251932838,0.14081156,63861.0,63860.0,0.24978122]
[1727251934338,0.15481156,63861.0,63860.0,0.24978122]
[1727251935335,0.092292,63861.0,63860.0,0.24978122]
[1727251935539,0.15484443,63861.0,63860.0,0.24978122]
[1727251936231,0.16584443,63861.0,63860.0,0.25078122]
[1727251936427,0.16585572,63861.0,63860.0,0.25078122]
[1727251937133,0.16585573,63861.0,63860.0,0.25078122]
[1727251937330,0.103292,63861.0,63860.0,0.25078122]
[1727251937638,0.103292,63861.0,63860.0,0.29765101]
[1727251938425,0.103292,63861.0,63860.0,0.25078122]
[1727251939235,0.103292,63861.0,63860.0,0.29770905]
[1727251939435,0.103292,63861.0,63860.0,0.25078122]
[1727251952242,0.089292,63861.0,63860.0,0.25078122]
[1727251952455,0.090292,63861.0,63860.0,0.25078122]
[1727251952751,0.079292,63861.0,63860.0,0.61058122]
[1727251952939,0.001,63861.0,63860.0,0.53228922]
[1727251953243,0.001,63861.0,63860.0,0.69065075]
[1727251954357,0.001,63861.0,63860.0,0.76874569]
[1727251956343,0.001,63861.0,63860.0,0.68874192]
[1727251957238,0.001,63861.0,63860.0,0.61058122]
[1727251958765,0.001,63861.0,63860.0,0.24978122]
[1727251959145,0.001,63861.0,63860.0,0.97138122]
[1727251959340,0.001,63861.0,63860.0,0.24978122]
[1727251959545,0.002,63861.0,63860.0,0.97638122]
[1727251960654,0.002,63861.0,63860.0,0.98138122]
[1727251961675,0.001,63861.0,63860.0,0.97938122]
[1727251962144,0.0072,63866.0,63865.0,0.078286]
[1727251962340,0.06261899,63868.0,63865.0,0.13687448]
[1727251962545,0.06261899,63868.0,63867.0,0.3608]
[1727251962758,0.14089999,63869.0,63868.0,0.078282]
[1727251963256,0.14089999,63869.0,63868.0,0.24126977]
[1727251963446,0.14089999,63869.0,63868.0,0.33126977]
[1727251963849,0.14089999,63869.0,63868.0,0.24126977]
[1727251964156,0.14489999,63869.0,63868.0,0.24126977]
[1727251964740,0.14989999,63869.0,63868.0,0.24226977]
[1727251965255,0.23989999,63869.0,63868.0,0.16398777]
[1727251965457,0.23989999,63869.0,63868.0,0.24226977]
[1727251966350,0.23989999,63869.0,63868.0,0.16398777]
[1727251968855,0.23989999,63869.0,63868.0,0.52478777]
[1727251971661,0.14989999,63869.0,63868.0,0.60306977]
[1727251974356,0.087281,63869.0,63868.0,0.60306977]
[1727251974558,0.087281,63869.0,63868.0,0.69306977]
[1727251978258,0.009,63869.0,63868.0,0.69306977]
[1727251979668,0.087281,63869.0,63868.0,0.69306977]
[1727251979965,0.087281,63869.0,63868.0,0.60306977]
[1727251982257,0.11266183,63869.0,63868.0,0.60306977]
[1727251982456,0.1655969,63869.0,63868.0,0.66556907]
[1727251982965,0.1655969,63869.0,63868.0,0.30476907]
[1727251983266,0.1655969,63869.0,63868.0,0.66556907]
[1727251985172,0.1655969,63869.0,63868.0,0.30476907]
[1727251985372,0.1655969,63869.0,63868.0,0.66556907]
[1727251985569,0.1655969,63869.0,63868.0,0.30476907]
[1727251985762,0.1655969,63869.0,63868.0,0.66556907]
[1727251985963,0.1655969,63869.0,63868.0,0.30476907]
[1727251986272,0.1655969,63869.0,63868.0,0.66556907]
[1727251989972,0.1655969,63869.0,63868.0,0.58728707]
[1727251990571,0.16559667,63869.0,63868.0,0.58728707]
[1727251990797,0.11266189,63869.0,63868.0,0.52478777]
[1727251991577,0.11266188,63869.0,63868.0,0.52478777]
[1727251996479,0.11266184,63869.0,63868.0,0.52478777]
[1727252000183,0.19094284,63869.0,63868.0,0.57175205]
[1727252000484,0.19094284,63869.0,63865.0,0.04696428]
[1727252000485,1.46490084,63869.0,63865.0,0.04696428]
[1727252000684,1.46490084,63869.0,63859.0,1e-06]
[1727252000685,0.156584,63860.0,63859.0,1e-06]
[1727252000903,1.21650946,63860.0,63859.0,1e-06]
[1727252001082,3.73938008,63860.0,63859.0,1e-06]
[1727252001675,2.23938008,63860.0,63859.0,1e-06]
[1727252001876,2.14938008,63860.0,63859.0,0.004001]
[1727252002083,2.23938008,63860.0,63859.0,0.004001]
[1727252002589,2.18407058,63860.0,63859.0,0.001001]
[1727252003083,2.24607058,63860.0,63859.0,0.001001]
[1727252003272,2.18100687,63860.0,63859.0,0.001001]
[1727252004485,2.18300687,63860.0,63859.0,1e-06]
[1727252005388,2.27661691,63860.0,63859.0,1e-06]
[1727252005778,2.27662532,63860.0,63859.0,1e-06]
[1727252006487,2.18301528,63860.0,63859.0,1e-06]
[1727252006684,2.24743091,63860.0,63859.0,1e-06]
[1727252007285,2.18301528,63860.0,63859.0,1e-06]
[1727252008382,2.27652905,63860.0,63859.0,1e-06]
[1727252008983,2.18301528,63860.0,63859.0,1e-06]
[1727252009282,2.09301528,63860.0,63859.0,1e-06]
[1727252009487,1.58301528,63860.0,63859.0,1e-06]
[1727252009688,2.18301528,63860.0,63859.0,1e-06]
[1727252010484,2.15762603,63860.0,63859.0,1e-06]
[1727252011503,2.23553008,63860.0,63859.0,1e-06]
[1727252015893,1.08782603,63860.0,63859.0,1e-06]
[1727252016190,1.13492031,63860.0,63859.0,1e-06]
[1727252016994,1.10372031,63860.0,63859.0,1e-06]
[1727252020395,0.85753403,63860.0,63859.0,1e-06]
[1727252020598,0.94753403,63860.0,63859.0,1e-06]
[1727252020795,0.078302,63853.0,63849.0,0.09]
[1727252021103,0.078302,63853.0,63850.0,0.17383927]
[1727252021300,0.078303,63852.0,63850.0,0.17383927]
[1727252022600,0.078303,63851.0,63850.0,0.17383927]
[1727252024604,0.081303,63851.0,63850.0,0.17383927]
[1727252024990,0.081303,63851.0,63850.0,0.25214327]
[1727252025691,0.083303,63851.0,63850.0,0.25214327]
[1727252027606,0.081303,63851.0,63850.0,0.25314327]
[1727252028002,0.078303,63851.0,63850.0,0.25314327]
[1727252028405,0.078303,63851.0,63850.0,0.25214327]
[1727252028802,0.078303,63851.0,63850.0,0.25314327]
[1727252029421,0.079303,63851.0,63850.0,0.25314327]
[1727252029705,0.12620301,63851.0,63850.0,0.25314327]
[1727252030399,0.1416509,63851.0,63850.0,0.25314327]
[1727252031103,0.1406509,63851.0,63850.0,0.25314327]
[1727252032212,0.078303,63851.0,63850.0,0.25314327]
[1727252038412,0.1406509,63851.0,63850.0,0.25314327]
[1727252040712,0.0623479,63851.0,63850.0,0.25314327]
[1727252040911,0.0623479,63852.0,63851.0,0.078303]
[1727252041112,0.0623479,63852.0,63851.0,0.168303]
[1727252041414,0.0623479,63852.0,63851.0,0.33384997]
[1727252042307,0.0633479,63852.0,63851.0,0.33384997]
[1727252043317,0.0633479,63852.0,63851.0,0.33484997]
[1727252044211,0.002,63852.0,63851.0,0.33484997]
[1727252044806,0.001,63852.0,63851.0,0.33384997]
[1727252045017,0.002,63852.0,63851.0,0.33484997]
[1727252045519,0.0643479,63852.0,63851.0,0.33484997]
[1727252046809,0.0633479,63852.0,63851.0,0.33484997]
[1727252048312,0.0633479,63852.0,63851.0,0.39734927]
[1727252048926,0.0623479,63852.0,63851.0,0.39734927]
[1727252049425,0.078299,63854.0,63853.0,0.0783]
[1727252049821,0.078299,63854.0,63853.0,0.25820638]
[1727252051210,0.078299,63854.0,63853.0,0.25920638]
[1727252051920,0.07789428,63855.0,63854.0,0.078299]
[1727252052116,0.07789428,63857.0,63856.0,0.078297]
[1727252052313,0.32175003,63860.0,63854.0,0.32740436]
[1727252052625,0.32175003,63860.0,63853.0,0.001]
[1727252052626,0.06263568,63855.0,63853.0,0.001]
[1727252052830,0.06263568,63855.0,63853.0,0.3618]
[1727252053027,0.06263568,63855.0,63854.0,0.17927566]
[1727252053321,0.06263568,63855.0,63854.0,0.25757466]
[1727252053525,0.001,63855.0,63854.0,0.50564624]
[1727252053717,0.001,63855.0,63854.0,0.42673536]
[1727252054031,0.04697017,63856.0,63855.0,0.078298]
[1727252054415,0.04697017,63856.0,63855.0,0.245667]
[1727252054726,0.04697017,63857.0,63856.0,0.078297]
[1727252055020,0.04697017,63857.0,63856.0,0.168297]
[1727252055212,0.04697017,63857.0,63856.0,0.34470028]
[1727252055619,0.04697017,63858.0,63857.0,0.078296]
[1727252055819,0.04697017,63858.0,63857.0,0.23087423]
[1727252056016,0.04697017,63858.0,63857.0,0.40264691]
[1727252057618,0.14092668,63861.0,63858.0,0.078294]
[1727252057619,0.04697017,63859.0,63858.0,0.078294]
[1727252057813,0.04697017,63859.0,63858.0,0.168294]
[1727252058014,0.04697017,63859.0,63858.0,0.33371924]
[1727252058934,0.04697017,63859.0,63858.0,0.33471924]
[1727252059515,0.04697017,63860.0,63859.0,0.078293]
[1727252059718,0.04697017,63860.0,63859.0,0.439093]
[1727252059919,0.078291,63861.0,63859.0,0.439093]
[1727252059920,0.06263568,63861.0,63860.0,0.24739234]
[1727252060123,0.06263568,63863.0,63862.0,0.078289]
[1727252060313,0.06263568,63863.0,63862.0,0.168289]
[1727252060524,0.06263568,63863.0,63862.0,0.33313394]
[1727252061623,0.06463568,63863.0,63862.0,0.33313394]
[1727252062929,0.005,63863.0,63862.0,0.33313394]
[1727252066721,0.05189308,63863.0,63862.0,0.33313394]
[1727252067827,0.005,63863.0,63862.0,0.33313394]
[1727252075624,0.05189308,63863.0,63862.0,0.33313394]
[1727252079635,0.005,63863.0,63862.0,0.33313394]
[1727252080835,0.005,63863.0,63862.0,0.39571217]
[1727252081034,0.005,63863.0,63862.0,0.33313394]
[1727252081637,0.005,63863.0,63862.0,0.39571217]
[1727252082033,0.005,63863.0,63862.0,0.75651217]
[1727252082333,0.06763568,63863.0,63862.0,0.69393394]
[1727252084540,0.005,63863.0,63862.0,0.69393394]
[1727252089353,0.005,63863.0,63862.0,0.61564494]
[1727252089354,0.083288,63863.0,63862.0,0.61564494]
[1727252090632,0.083288,63863.0,63862.0,0.69393394]
[1727252092949,0.083288,63863.0,63862.0,0.33313394]
[1727252093150,0.083288,63863.0,63862.0,0.69393394]
[1727252095950,0.083288,63863.0,63862.0,0.33313394]
[1727252096153,0.083288,63863.0,63862.0,0.69393394]
[1727252097751,0.005,63863.0,63862.0,0.69393394]
[1727252099479,0.005,63863.0,63862.0,0.77209464]
[1727252099646,0.005,63863.0,63862.0,0.69393394]
[1727252100955,0.005,63863.0,63862.0,0.77209464]
[1727252101260,0.06765422,63863.0,63862.0,0.77209464]
[1727252101451,0.005,63863.0,63862.0,0.77209464]
[1727252101653,0.06765131,63863.0,63862.0,0.69393394]
[1727252103346,0.06765131,63863.0,63862.0,0.8065605]
[1727252103347,0.005,63863.0,63862.0,0.8065605]
[1727252105262,0.05197764,63863.0,63862.0,0.8065605]
[1727252105565,0.005,63863.0,63862.0,0.8065605]
[1727252108957,0.005,63863.0,63862.0,0.80636997]
[1727252109750,0.005,63863.0,63862.0,0.44556997]
[1727252109969,0.005,63863.0,63862.0,1.16716997]
[1727252113282,0.005,63863.0,63862.0,0.96473394]
[1727252113283,0.05197764,63863.0,63862.0,0.96473394]
[1727252113466,0.083288,63863.0,63862.0,0.88644494]
[1727252113763,0.083288,63863.0,63862.0,0.52564494]
[1727252113764,0.173288,63863.0,63862.0,0.52564494]
[1727252114161,0.3298703,63863.0,63862.0,0.52564494]
[1727252114958,0.173288,63863.0,63862.0,0.16484494]
[1727252115163,0.27696074,63863.0,63862.0,0.16484494]
[1727252115363,0.078298,63855.0,63854.0,0.16370934]
[1727252115564,0.078299,63854.0,63853.0,0.3608]
[1727252115772,0.12522921,63854.0,63853.0,0.3608]
[1727252115968,0.12522921,63854.0,63853.0,0.52783683]
[1727252116157,0.078299,63854.0,63853.0,0.52783683]
[1727252116572,0.12521921,63854.0,63853.0,0.52783683]
[1727252116771,0.12621921,63854.0,63853.0,0.52783683]
[1727252118076,0.12721921,63854.0,63853.0,0.52883683]
[1727252118467,0.080299,63854.0,63853.0,0.52883683]
[1727252118973,0.170299,63854.0,63853.0,0.52883683]
[1727252119570,0.248598,63854.0,63853.0,0.16803683]
[1727252120469,0.248598,63854.0,63853.0,0.001]
[1727252121676,0.31107795,63854.0,63853.0,0.001]
[1727252121882,0.248598,63854.0,63853.0,0.001]
[1727252122073,0.080299,63854.0,63853.0,0.001]
[1727252122590,0.12714766,63854.0,63853.0,0.001]
[1727252123085,0.080299,63854.0,63853.0,0.001]
[1727252127787,0.002,63854.0,63853.0,0.2571228]
[1727252128078,0.002,63854.0,63853.0,0.3471228]
[1727252129381,0.002,63854.0,63853.0,0.7079228]
[1727252131085,0.002,63854.0,63853.0,0.75476546]
[1727252131281,0.002,63854.0,63853.0,0.66476546]
[1727252131587,0.002,63854.0,63853.0,0.75468407]
[1727252132002,0.002,63854.0,63853.0,0.7079228]
[1727252135586,0.002,63854.0,63853.0,0.77047445]
[1727252136384,0.0036,63859.0,63858.0,0.078294]
[1727252136579,0.0036,63864.0,63858.0,0.13677001]
[1727252136785,0.0036,63864.0,63863.0,0.4508]
[1727252136975,0.12513361,63866.0,63863.0,0.529088]
[1727252137197,0.12513361,63866.0,63863.0,0.71018351]
[1727252138479,0.04684861,63865.0,63863.0,0.71018351]
[1727252138788,0.078285,63866.0,63863.0,0.63189551]
[1727252138789,0.12513561,63864.0,63863.0,0.63189551]
[1727252140189,0.078287,63864.0,63863.0,0.63189551]
[1727252140596,0.12513561,63864.0,63863.0,0.63189551]
[1727252140784,0.12713561,63864.0,63863.0,0.63189551]
[1727252142594,0.080287,63864.0,63863.0,0.63189551]
[1727252143489,0.06447995,63864.0,63863.0,0.71018351]
[1727252147693,0.002,63864.0,63863.0,0.71018351]
[1727252148490,0.080287,63864.0,63863.0,0.63189551]
[1727252148689,0.14276695,63864.0,63863.0,0.54189551]
[1727252150795,0.06447995,63864.0,63863.0,0.71018351]
[1727252151596,0.002,63864.0,63863.0,0.71018351]
[1727252152696,0.002,63864.0,63863.0,0.77254352]